fUSD/lending_fUSD_20260405
["ID","MTS","AMOUNT","RATE_DAILY","PERIOD"]
[419779387,1775375453087,-150.0,0.00014247,2]
[419779388,1775375453105,-150.0,0.00014247,2]
[419779389,1775375453122,-150.0,0.00014247,2]
[419779390,1775375453135,-150.0,0.00014247,2]
[419779391,1775375453147,-1000.0,0.00014247,2]
[419779392,1775375453161,-1000.0,0.00014247,2]
[419779393,1775375453195,-1000.0,0.00014247,2]
[419779394,1775375453218,-1000.0,0.00014247,2]
[419779395,1775375453247,-627.70930647,0.00014247,2]
[419779396,1775375453258,-1000.0,0.00014247,2]
[419779397,1775375453269,-861.43877969,0.00014247,2]
[419779398,1775375453280,-308.03873246,0.00014247,2]
[419779399,1775375453292,-1000.0,0.00014247,2]
[419779400,1775375453304,-1000.0,0.00014247,2]
[419779401,1775375453320,-1000.0,0.00014247,2]
[419779402,1775375453343,-1000.0,0.00014247,2]
[419779403,1775375453369,-1000.0,0.00014247,2]
[419779404,1775375453390,-1000.0,0.00014247,2]
[419779405,1775375453413,-1000.0,0.00014247,2]
[419779406,1775375453427,-1000.0,0.00014247,2]
[419779407,1775375453454,-1000.0,0.00014247,2]
[419779408,1775375453466,-1000.0,0.00014247,2]
[419779409,1775375453479,-1000.0,0.00014247,2]
[419779410,1775375453493,-1000.0,0.00014247,2]
[419779411,1775375453509,-1000.0,0.00014247,2]
[419779412,1775375453521,-1000.0,0.00014247,2]
[419779413,1775375453532,-1000.0,0.00014247,2]
[419779414,1775375453544,-1000.0,0.00014247,2]
[419779415,1775375453557,-1000.0,0.00014247,2]
[419779416,1775375453569,-790.32775663,0.00014247,2]
[419779417,1775375453582,-1000.0,0.00014247,2]
[419779418,1775375453602,-1000.0,0.00014247,2]
[419779419,1775375453615,-1000.0,0.00014247,2]
[419779420,1775375453626,-1000.0,0.00014247,2]
[419779421,1775375453639,-686.27125357,0.00014247,2]
[419779422,1775375453652,-500.99241895,0.00014247,2]
[419779423,1775375453666,-1000.0,0.00014247,2]
[419779424,1775375453680,-500.0,0.00014247,2]
[419779425,1775375453693,-1000.0,0.00014247,2]
[419779426,1775375453706,-1000.0,0.00014247,2]
[419779427,1775375453718,-743.80429884,0.00014247,2]
[419779428,1775375453733,-1000.0,0.00014247,2]
[419779429,1775375453746,-1000.0,0.00014247,2]
[419779430,1775375453759,-151.0,0.00014247,2]
[419779431,1775375453770,-151.0,0.00014247,2]
[419779432,1775375453782,-151.0,0.00014247,2]
[419779433,1775375453793,-151.0,0.00014247,2]
[419779434,1775375453806,-150.0,0.00014254,2]
[419779435,1775375453817,-150.0,0.00014257,2]
[419779436,1775375453829,-150.0,0.00014257,2]
[419779437,1775375453841,-150.0,0.00014261,2]
[419779438,1775375453854,-150.0,0.00014261,2]
[419779439,1775375453868,-150.0,0.00014266,2]
[419779440,1775375453879,-150.0,0.00014267,2]
[419779441,1775375453890,-150.0,0.00014271,2]
[419779442,1775375453901,-150.0,0.00014274,2]
[419779443,1775375453913,-150.0,0.00014279,2]
[419779444,1775375453925,-474.26,0.00014281,2]
[419779445,1775375453938,-150.0,0.00014287,2]
[419779446,1775375453951,-150.0,0.0001429,2]
[419779447,1775375453963,-150.0,0.0001429,2]
[419779448,1775375453974,-150.0,0.0001429,2]
[419779449,1775375453987,-150.0,0.00014292,2]
[419779450,1775375453999,-150.0,0.00014299,2]
[419779451,1775375454011,-885.11358311,0.00014304,2]
[419779452,1775375454022,-150.0,0.00014305,2]
[419779453,1775375454034,-150.0,0.00014308,2]
[419779454,1775375454046,-150.0,0.0001431,2]
[419779455,1775375454057,-150.0,0.00014312,2]
[419779456,1775375454068,-150.0,0.0001432,2]
[419779457,1775375454081,-150.0,0.0001432,2]
[419779458,1775375454092,-150.0,0.00014328,2]
[419779459,1775375454104,-150.0,0.00014329,2]
[419779460,1775375454115,-150.0,0.0001433,2]
[419779461,1775375454126,-150.0,0.00014332,2]
[419779462,1775375454139,-150.0,0.0001434,2]
[419779463,1775375454150,-150.0,0.00014346,2]
[419779464,1775375454163,-1576.9404974,0.00014347,2]
[419779465,1775375454175,-150.0,0.00014349,2]
[419779466,1775375454186,-150.0,0.00014349,2]
[419779467,1775375454197,-1000.0,0.00014349,2]
[419779468,1775375454209,-150.0,0.0001435,2]
[419779469,1775375454220,-150.0,0.00014355,2]
[419779470,1775375454231,-150.0,0.00014364,2]
[419779471,1775375454244,-150.0,0.00014364,2]
[419779472,1775375454256,-150.0,0.00014366,2]
[419779473,1775375454267,-150.0,0.00014371,2]
[419779474,1775375454280,-200.0,0.00014375,2]
[419779475,1775375454292,-368.07161935,0.00014375,2]
[419779476,1775375454304,-1536.04360649,0.00014375,2]
[419779477,1775375454315,-799.54513345,0.00014375,2]
[419779478,1775375454327,-187.78006525,0.00014375,2]
[419779479,1775375454339,-200.0,0.00014375,2]
[419779480,1775375454350,-745.65223616,0.00014375,2]
[419779481,1775375454361,-301.00069851,0.00014375,2]
[419779482,1775375454372,-150.0,0.00014378,2]
[419779483,1775375454383,-150.0,0.00014378,2]
[419779484,1775375454394,-150.0,0.00014378,2]
[419779485,1775375454405,-150.0,0.00014381,2]
[419779486,1775375454417,-150.0,0.00014382,2]
[419779487,1775375454431,-1000.0,0.00014385,2]
[419779488,1775375454443,-1000.0,0.00014385,2]
[419779489,1775375454454,-1000.0,0.00014385,2]
[419779490,1775375454465,-1000.0,0.00014385,2]
[419779491,1775375454475,-150.0,0.00014392,2]
[419779492,1775375454486,-150.0,0.00014396,2]
[419779493,1775375454498,-150.0,0.000144,2]
[419779494,1775375454508,-150.0,0.00014406,2]
[419779495,1775375454519,-150.0,0.00014407,2]
[419779496,1775375454530,-150.0,0.00014407,2]
[419779497,1775375454541,-150.0,0.00014409,2]
[419779498,1775375454552,-150.0,0.00014413,2]
[419779499,1775375454564,-150.0,0.00014418,2]
[419779500,1775375454574,-150.0,0.0001442,2]
[419779501,1775375454585,-150.0,0.00014428,2]
[419779502,1775375454596,-150.0,0.00014432,2]
[419779503,1775375454607,-150.0,0.00014434,2]
[419779504,1775375454619,-150.0,0.00014436,2]
[419779505,1775375454631,-150.0,0.00014437,2]
[419779506,1775375454644,-150.0,0.00014437,2]
[419779507,1775375454656,-508.0,0.00014449,3]
[419779508,1775375454670,-150.0,0.00014454,2]
[419779509,1775375454681,-150.0,0.00014455,2]
[419779510,1775375454693,-150.0,0.00014457,2]
[419779511,1775375454707,-150.0,0.0001446,2]
[419779512,1775375454718,-150.0,0.00014466,2]
[419779513,1775375454729,-150.0,0.00014466,2]
[419779514,1775375454740,-150.0,0.00014466,2]
[419779515,1775375454751,-150.0,0.00014466,2]
[419779516,1775375454762,-150.0,0.00014472,2]
[419779517,1775375454773,-150.0,0.00014475,2]
[419779518,1775375454784,-150.0,0.00014476,2]
[419779519,1775375454796,-150.0,0.00014477,2]
[419779520,1775375454808,-618.16,0.00014478,2]
[419779521,1775375454819,-500.0,0.00014478,2]
[419779522,1775375454830,-218.94,0.00014478,2]
[419779523,1775375454842,-150.0,0.00014483,2]
[419779524,1775375454852,-150.0,0.0001449,2]
[419779525,1775375454864,-150.0,0.00014493,2]
[419779526,1775375454876,-150.0,0.00014495,2]
[419779527,1775375454887,-150.0,0.00014495,2]
[419779528,1775375454900,-150.0,0.00014497,2]
[419779529,1775375454911,-218.94,0.00014498,2]
[419779530,1775375454923,-161.09,0.00014503,2]
[419779531,1775375454934,-1619.684,0.00014504,2]
[419779532,1775375454945,-150.0,0.00014508,2]
[419779533,1775375454958,-150.0,0.00014508,2]
[419779534,1775375454970,-150.0,0.00014518,2]
[419779535,1775375454981,-218.94,0.00014519,2]
[419779536,1775375454994,-150.0,0.00014524,2]
[419779537,1775375455005,-150.0,0.00014524,2]
[419779538,1775375455017,-150.0,0.00014525,2]
[419779539,1775375455030,-150.0,0.00014526,2]
[419779540,1775375455042,-161.09,0.00014528,2]
[419779541,1775375455054,-150.0,0.00014529,2]
[419779542,1775375455067,-150.0,0.00014534,2]
[419779543,1775375455078,-150.0,0.00014539,2]
[419779544,1775375455090,-150.0,0.00014543,2]
[419779545,1775375455101,-150.0,0.00014546,2]
[419779546,1775375455113,-150.0,0.00014553,2]
[419779547,1775375455125,-150.0,0.00014553,2]
[419779548,1775375455136,-150.0,0.00014553,2]
[419779549,1775375455147,-161.09,0.00014554,2]
[419779550,1775375455159,-150.0,0.00014557,2]
[419779551,1775375455171,-150.0,0.00014559,2]
[419779552,1775375455183,-150.0,0.0001456,2]
[419779553,1775375455194,-150.0,0.00014561,2]
[419779554,1775375455205,-150.0,0.00014579,2]
[419779555,1775375455216,-1000.0,0.00014581,2]
[419779556,1775375455228,-150.0,0.00014581,2]
[419779557,1775375455239,-150.0,0.00014583,2]
[419779558,1775375455251,-150.0,0.00014583,2]
[419779559,1775375455262,-150.0,0.00014584,2]
[419779560,1775375455274,-150.0,0.00014585,2]
[419779561,1775375455286,-150.0,0.00014589,2]
[419779562,1775375455297,-150.0,0.00014597,2]
[419779563,1775375455308,-150.0,0.00014597,2]
[419779564,1775375455319,-160.9517,0.000146,2]
[419779565,1775375455330,-150.0,0.00014603,2]
[419779566,1775375455342,-150.0,0.0001461,2]
[419779567,1775375455353,-468.18002471,0.0001461,2]
[419779568,1775375455365,-150.0,0.00014612,2]
[419779569,1775375455375,-150.0,0.00014612,2]
[419779570,1775375455386,-150.0,0.00014614,2]
[419779571,1775375455397,-150.0,0.00014615,2]
[419779572,1775375455408,-730.09729929,0.00014621,2]
[419779573,1775375455419,-150.0,0.00014621,2]
[419779574,1775375455430,-150.0,0.00014624,2]
[419779575,1775375455441,-150.0,0.00014633,2]
[419779576,1775375455453,-150.0,0.00014635,2]
[419779577,1775375455464,-150.0,0.00014638,2]
[419779578,1775375455475,-227.3777344,0.00014638,2]
[419779579,1775375455487,-150.0,0.00014641,2]
[419779580,1775375455498,-150.0,0.00014641,2]
[419779581,1775375455509,-150.0,0.00014641,2]
[419779582,1775375455521,-150.0,0.00014645,2]
[419779583,1775375455533,-150.0,0.00014651,2]
[419779584,1775375455545,-150.0,0.00014654,2]
[419779585,1775375455557,-150.0,0.00014661,2]
[419779586,1775375455568,-150.0,0.00014666,2]
[419779587,1775375455580,-150.0,0.00014669,2]
[419779588,1775375455592,-150.0,0.0001467,2]
[419779589,1775375455605,-150.0,0.0001467,2]
[419779590,1775375455616,-150.0,0.00014683,2]
[419779591,1775375455627,-150.0,0.00014686,2]
[419779592,1775375455640,-150.0,0.00014686,2]
[419779593,1775375455652,-150.0,0.00014687,2]
[419779594,1775375455665,-150.0,0.00014687,2]
[419779595,1775375455676,-247.75859548,0.0001469,2]
[419779596,1775375455688,-3608.78203308,0.0001469,2]
[419779597,1775375455700,-155.66361095,0.0001469,2]
[419779598,1775375455711,-150.0,0.00014692,2]
[419779599,1775375455723,-150.0,0.000147,2]
[419779600,1775375455734,-150.0,0.000147,2]
[419779601,1775375455745,-160.9517,0.000147,2]
[419779602,1775375455757,-150.0,0.00014705,2]
[419779603,1775375455769,-150.0,0.00014708,2]
[419779604,1775375455783,-150.0,0.00014712,2]
[419779605,1775375455795,-150.0,0.00014718,2]
[419779606,1775375455806,-150.0,0.00014723,2]
[419779607,1775375455817,-150.0,0.00014729,2]
[419779608,1775375455828,-150.0,0.00014729,2]
[419779609,1775375455839,-150.0,0.00014729,2]
[419779610,1775375455850,-150.0,0.00014729,2]
[419779611,1775375455861,-150.0,0.00014729,2]
[419779612,1775375455873,-150.0,0.00014729,2]
[419779613,1775375455885,-150.0,0.00014737,2]
[419779614,1775375455897,-150.0,0.00014741,2]
[419779615,1775375455909,-150.0,0.00014747,2]
[419779616,1775375455922,-150.0,0.0001475,2]
[419779617,1775375455935,-150.0,0.0001475,2]
[419779618,1775375455946,-150.0,0.00014752,2]
[419779619,1775375455960,-150.0,0.00014758,2]
[419779620,1775375455972,-150.0,0.00014758,2]
[419779621,1775375455983,-150.0,0.00014759,2]
[419779622,1775375455995,-150.0,0.00014763,2]
[419779623,1775375456005,-150.0,0.00014771,2]
[419779624,1775375456016,-150.0,0.00014777,2]
[419779625,1775375456027,-190.76047765,0.00014777,2]
[419779626,1775375456040,-150.0,0.00014782,2]
[419779627,1775375456052,-150.0,0.00014787,2]
[419779628,1775375456063,-150.0,0.00014787,2]
[419779629,1775375456075,-150.0,0.00014788,2]
[419779630,1775375456085,-150.0,0.00014792,2]
[419779631,1775375456096,-150.0,0.00014795,2]
[419779632,1775375456108,-1500.0,0.00014795,2]
[419779633,1775375456118,-1502.36401508,0.00014795,2]
[419779634,1775375456129,-1500.0,0.00014795,2]
[419779635,1775375456139,-1500.0,0.00014795,2]
[419779636,1775375456150,-1227.692277,0.00014795,2]
[419779637,1775375456160,-1515.96545288,0.00014795,2]
[419779638,1775375456171,-953.31303788,0.00014795,2]
[419779639,1775375456183,-1500.0,0.00014795,2]
[419779640,1775375456194,-1000.0,0.00014795,2]
[419779641,1775375456205,-1500.0,0.00014795,2]
[419779642,1775375456215,-1500.0,0.00014795,2]
[419779643,1775375456226,-1500.0,0.00014795,2]
[419779644,1775375456237,-1500.0,0.00014795,2]
[419779645,1775375456248,-1500.0,0.00014795,2]
[419779646,1775375456260,-1500.0,0.00014795,2]
[419779647,1775375456271,-1002.83538283,0.00014795,2]
[419779648,1775375456528,-1500.0,0.00014795,2]
[419779649,1775375456564,-1500.0,0.00014795,2]
[419779650,1775375456575,-1500.0,0.00014795,2]
[419779651,1775375456585,-1500.0,0.00014795,2]
[419779652,1775375456595,-1500.0,0.00014795,2]
[419779653,1775375456605,-1500.0,0.00014795,2]
[419779654,1775375456616,-1500.0,0.00014795,2]
[419779655,1775375456627,-418.3764967,0.00014795,2]
[419779656,1775375456637,-1500.0,0.00014795,2]
[419779657,1775375456647,-1500.0,0.00014795,2]
[419779658,1775375456657,-1500.0,0.00014795,2]
[419779659,1775375456667,-1500.0,0.00014795,2]
[419779660,1775375456677,-1500.0,0.00014795,2]
[419779661,1775375456686,-1500.0,0.00014795,2]
[419779662,1775375456696,-1500.0,0.00014795,2]
[419779663,1775375456707,-553.41835149,0.00014795,2]
[419779664,1775375456717,-160.9517,0.000148,2]
[419779665,1775375456727,-150.0,0.00014801,2]
[419779666,1775375456738,-150.0,0.00014812,2]
[419779667,1775375456748,-150.0,0.00014813,2]
[419779668,1775375456759,-150.0,0.00014814,2]
[419779669,1775375456769,-150.0,0.00014815,2]
[419779670,1775375456779,-150.0,0.00014816,2]
[419779671,1775375456790,-150.0,0.00014816,2]
[419779672,1775375456799,-150.0,0.00014816,2]
[419779673,1775375456810,-150.0,0.0001482,2]
[419779674,1775375456820,-500.0,0.00014822,2]
[419779675,1775375456831,-150.0,0.0001483,2]
[419779676,1775375456842,-150.0,0.00014834,2]
[419779677,1775375456854,-885.11358311,0.00014836,2]
[419779678,1775375456866,-150.0,0.00014839,2]
[419779679,1775375456877,-150.0,0.00014846,2]
[419779680,1775375456888,-150.0,0.00014846,2]
[419779681,1775375456901,-150.0,0.00014847,2]
[419779682,1775375456911,-150.0,0.00014848,2]
[419779683,1775375456922,-150.0,0.00014855,2]
[419779684,1775375456933,-150.0,0.00014856,2]
[419779685,1775375456943,-150.0,0.00014865,2]
[419779686,1775375456954,-150.0,0.00014866,2]
[419779687,1775375456965,-150.0,0.00014875,2]
[419779688,1775375456975,-150.0,0.00014875,2]
[419779689,1775375456987,-150.0,0.00014876,2]
[419779690,1775375456997,-150.0,0.00014879,2]
[419779691,1775375457009,-150.0,0.00014884,2]
[419779692,1775375457020,-150.0,0.00014889,2]
[419779693,1775375457030,-150.0,0.0001489,2]
[419779694,1775375457040,-150.0,0.00014897,2]
[419779695,1775375457051,-160.9517,0.000149,2]
[419779696,1775375457061,-150.0,0.00014902,2]
[419779697,1775375457072,-3000.0,0.00014904,2]
[419779698,1775375457082,-150.0,0.00014904,2]
[419779699,1775375457092,-150.0,0.00014904,2]
[419779700,1775375457103,-150.0,0.00014904,2]
[419779701,1775375457113,-150.0,0.0001491,2]
[419779702,1775375457124,-150.0,0.00014911,2]
[419779703,1775375457134,-150.0,0.00014915,2]
[419779704,1775375457144,-916.92385746,0.00014917,2]
[419779705,1775375457155,-150.0,0.00014918,2]
[419779706,1775375457165,-150.0,0.0001492,2]
[419779707,1775375457175,-200.0,0.00014923,2]
[419779708,1775375457185,-1592.87721993,0.00014923,2]
[419779709,1775375457195,-829.12830338,0.00014923,2]
[419779710,1775375457205,-194.72792766,0.00014923,2]
[419779711,1775375457215,-200.0,0.00014923,2]
[419779712,1775375457225,-369.5568607,0.00014923,2]
[419779713,1775375457235,-150.0,0.00014933,2]
[419779714,1775375457245,-150.0,0.00014933,2]
[419779715,1775375457255,-1500.0,0.00014933,2]
[419779716,1775375457265,-1500.0,0.00014933,2]
[419779717,1775375457275,-1500.0,0.00014933,2]
[419779718,1775375457285,-1500.0,0.00014933,2]
[419779719,1775375457296,-323.80013597,0.00014935,2]
[419779720,1775375457306,-150.0,0.00014938,2]
[419779721,1775375457316,-150.0,0.00014939,2]
[419779722,1775375457327,-150.0,0.00014941,2]
[419779723,1775375457337,-150.0,0.00014943,2]
[419779724,1775375457347,-647.84961372,0.00014946,2]
[419779725,1775375457357,-1000.0,0.00014946,2]
[419779726,1775375457367,-199.11,0.00014949,2]
[419779727,1775375457377,-593.25,0.00014949,2]
[419779728,1775375457387,-593.25,0.00014949,2]
[419779729,1775375457397,-593.25,0.00014949,2]
[419779730,1775375457407,-593.25,0.00014949,2]
[419779731,1775375457417,-593.46,0.00014949,2]
[419779732,1775375457427,-150.0,0.00014956,2]
[419779733,1775375457437,-1537.0,0.00014957,5]
[419779734,1775375457446,-150.0,0.00014957,2]
[419779735,1775375457457,-150.0,0.0001496,2]
[419779736,1775375457467,-150.0,0.00014963,2]
[419779737,1775375457476,-150.0,0.00014963,2]
[419779738,1775375457486,-150.0,0.00014963,2]
[419779739,1775375457496,-1000.0,0.00014963,2]
[419779740,1775375457506,-150.0,0.00014965,2]
[419779741,1775375457516,-150.0,0.00014966,2]
[419779742,1775375457527,-150.0,0.00014974,2]
[419779743,1775375457537,-150.0,0.00014976,2]
[419779744,1775375457547,-150.0,0.00014981,2]
[419779745,1775375457557,-150.0,0.00014992,2]
[419779746,1775375457567,-150.0,0.00014992,2]
[419779747,1775375457577,-150.0,0.00014992,2]
[419779748,1775375457587,-150.0,0.00014992,2]
[419779749,1775375457597,-150.0,0.00014992,2]
[419779750,1775375457607,-150.0,0.00014992,2]
[419779751,1775375457617,-150.0,0.00014992,2]
[419779752,1775375457627,-150.0,0.00014992,2]
[419779753,1775375457637,-150.0,0.00014992,2]
[419779754,1775375457648,-590.26125341,0.00014999,2]
[419779755,1775375457658,-5923.32733494,0.00014999,2]
[419779756,1775375457668,-429.58742122,0.00014999,2]
[419779757,1775375457677,-618.16,0.00014999,2]
[419779758,1775375457687,-536.28,0.00014999,2]
[419779759,1775375457696,-300.0,0.00015,2]
[419779760,1775375457706,-150.0,0.00015002,2]
[419779761,1775375457717,-150.0,0.00015008,2]
[419779762,1775375457727,-150.0,0.0001501,2]
[419779763,1775375457737,-500.0,0.00015015,2]
[419779764,1775375457746,-2000.0,0.00015015,2]
[419779765,1775375457756,-150.0,0.00015017,2]
[419779766,1775375457766,-150.0,0.00015019,2]
[419779767,1775375457776,-150.0,0.00015021,2]
[419779768,1775375457785,-150.0,0.00015021,2]
[419779769,1775375457795,-150.0,0.00015023,2]
[419779770,1775375457805,-150.0,0.00015026,2]
[419779771,1775375457815,-150.0,0.00015028,2]
[419779772,1775375457825,-626.724,0.00015033,2]
[419779773,1775375457835,-1052.848,0.00015033,2]
[419779774,1775375457845,-163.913,0.00015033,2]
[419779775,1775375457855,-3637.957,0.00015033,2]
[419779776,1775375457865,-276.522,0.00015033,2]
[419779777,1775375457875,-1229.18,0.00015033,2]
[419779778,1775375457885,-1047.087,0.00015033,2]
[419779779,1775375457895,-415.0,0.00015033,2]
[419779780,1775375457905,-6020.0,0.00015033,2]
[419779781,1775375457915,-3770.0,0.00015033,2]
[419779782,1775375457925,-150.0,0.0001504,2]
[419779783,1775375457935,-150.0,0.00015043,2]
[419779784,1775375457946,-150.0,0.00015044,2]
[419779785,1775375457956,-150.0,0.00015046,2]
[419779786,1775375457966,-618.16,0.00015047,2]
[419779787,1775375457975,-618.16,0.00015047,2]
[419779788,1775375457985,-618.16,0.00015047,2]
[419779789,1775375457995,-618.16,0.00015047,2]
[419779790,1775375458005,-618.34,0.00015047,2]
[419779791,1775375458015,-150.0,0.0001505,2]
[419779792,1775375458026,-150.0,0.0001505,2]
[419779793,1775375458036,-5888.0,0.00015061,2]
[419779794,1775375458046,-150.0,0.00015064,2]
[419779795,1775375458056,-150.0,0.00015065,2]
[419779796,1775375458067,-150.0,0.00015068,2]
[419779797,1775375458079,-900.0,0.00015068,2]
[419779798,1775375458089,-672.962147,0.00015068,2]
[419779799,1775375458099,-672.962147,0.00015068,2]
[419779800,1775375458109,-672.962147,0.00015068,2]
[419779801,1775375458119,-672.962147,0.00015068,2]
[419779802,1775375458130,-672.962147,0.00015068,2]
[419779803,1775375458141,-672.962147,0.00015068,2]
[419779804,1775375458151,-672.962147,0.00015068,2]
[419779805,1775375458161,-672.962147,0.00015068,2]
[419779806,1775375458171,-800.0,0.00015068,2]
[419779807,1775375458182,-150.0,0.00015072,2]
[419779808,1775375458192,-150.0,0.00015073,2]
[419779809,1775375458203,-150.0,0.00015079,2]
[419779810,1775375458213,-150.0,0.00015079,2]
[419779811,1775375458223,-150.0,0.00015079,2]
[419779812,1775375458234,-150.0,0.00015081,2]
[419779813,1775375458244,-150.0,0.00015086,2]
[419779814,1775375458254,-5888.0,0.0001509,2]
[419779815,1775375458264,-150.0,0.00015094,2]
[419779816,1775375458274,-150.0,0.00015095,2]
[419779817,1775375458284,-150.0,0.00015099,2]
[419779818,1775375458295,-150.0,0.00015105,2]
[419779819,1775375458305,-6733.22928325,0.00015105,2]
[419779820,1775375458315,-5000.0,0.00015105,2]
[419779821,1775375458325,-5000.0,0.00015105,2]
[419779822,1775375458336,-5000.0,0.00015105,2]
[419779823,1775375458346,-150.0,0.00015108,2]
[419779824,1775375458355,-150.0,0.00015109,2]
[419779825,1775375458366,-150.0,0.00015109,2]
[419779826,1775375458376,-150.0,0.00015117,2]
[419779827,1775375458386,-150.0,0.00015119,2]
[419779828,1775375458395,-150.0,0.00015128,2]
[419779829,1775375458406,-150.0,0.00015129,2]
[419779830,1775375458415,-150.0,0.00015135,2]
[419779831,1775375458427,-150.0,0.00015137,2]
[419779832,1775375458437,-150.0,0.00015138,2]
[419779833,1775375458447,-150.0,0.00015138,2]
[419779834,1775375458457,-8422.99193755,0.00015143,2]
[419779835,1775375458467,-150.0,0.00015144,2]
[419779836,1775375458476,-871.95012592,0.00015146,2]
[419779837,1775375458486,-150.0,0.0001515,2]
[419779838,1775375458496,-150.0,0.00015153,2]
[419779839,1775375458505,-5888.0,0.0001516,2]
[419779840,1775375458515,-150.0,0.00015163,2]
[419779841,1775375458525,-436.66768098,0.00015164,2]
[419779842,1775375458535,-150.0,0.00015167,2]
[419779843,1775375458545,-150.0,0.00015167,2]
[419779844,1775375458555,-150.0,0.00015167,2]
[419779845,1775375458566,-150.0,0.00015169,2]
[419779846,1775375458576,-150.0,0.0001517,2]
[419779847,1775375458586,-150.0,0.00015171,2]
[419779848,1775375458596,-150.0,0.00015171,2]
[419779849,1775375458606,-150.0,0.00015176,2]
[419779850,1775375458616,-252.996368,0.00015177,2]
[419779851,1775375458627,-1800.0,0.00015178,2]
[419779852,1775375458636,-150.0,0.00015182,2]
[419779853,1775375458646,-150.0,0.00015189,2]
[419779854,1775375458657,-150.0,0.00015192,2]
[419779855,1775375458667,-150.0,0.00015195,2]
[419779856,1775375458677,-150.0,0.00015196,2]
[419779857,1775375458688,-150.0,0.00015196,2]
[419779858,1775375458698,-322.47111,0.000152,2]
[419779859,1775375458707,-996.49996996,0.00015201,2]
[419779860,1775375458718,-150.0,0.00015201,2]
[419779861,1775375458728,-1048.98200346,0.00015205,2]
[419779862,1775375458738,-150.0,0.00015207,2]
[419779863,1775375458748,-1000.0,0.00015211,2]
[419779864,1775375458759,-150.0,0.00015213,2]
[419779865,1775375458769,-150.0,0.00015221,2]
[419779866,1775375458779,-150.0,0.00015224,2]
[419779867,1775375458789,-150.0,0.00015225,2]
[419779868,1775375458799,-150.0,0.00015226,2]
[419779869,1775375458809,-150.0,0.00015226,2]
[419779870,1775375458819,-150.0,0.00015232,2]
[419779871,1775375458832,-150.0,0.00015233,2]
[419779872,1775375458843,-150.0,0.00015234,2]
[419779873,1775375458853,-150.0,0.00015237,2]
[419779874,1775375458863,-150.0,0.00015243,2]
[419779875,1775375458873,-150.0,0.00015246,2]
[419779876,1775375458884,-150.0,0.00015246,2]
[419779877,1775375458895,-1000.0,0.0001525,2]
[419779878,1775375458905,-150.0,0.00015255,2]
[419779879,1775375458916,-150.0,0.00015255,2]
[419779880,1775375458926,-150.0,0.00015255,2]
[419779881,1775375458936,-150.0,0.00015255,2]
[419779882,1775375458946,-150.0,0.00015255,2]
[419779883,1775375458957,-150.0,0.00015255,2]
[419779884,1775375458966,-1048.98200346,0.0001526,2]
[419779885,1775375459092,-150.0,0.00015261,2]
[419779886,1775375459103,-150.0,0.00015266,2]